[Event "XI Paracin Festival 2018"]
[Site "Paracin"]
[Date "2018.07.06"]
[Round "1"]
[White "Georgiev, Kiril"]
[Black "Mitev, Valentin"]
[Result "1-0"]
[ECO "D48"]
[WhiteElo "2590"]
[BlackElo "2086"]
[Annotator "ChessBase"]
[PlyCount "53"]
[EventDate "2018.07.06"]
[EventType "swiss"]
[EventCountry "SRB"]
[SourceTitle "playchess.com"]
[Source "ChessBase"]
[SourceQuality "1"]
[TimeControl "5400+30"]

1. Nf3 {[%emt 0:00:00]} d5 {[%emt 0:00:00]} 2. c4 {[%emt 0:00:25]} c6 {[%emt 0:01:14]} 3. e3 {[%emt 0:01:26]} Nf6 {[%emt 0:02:00]} 4. Nc3 {[%emt 0:00:36]} e6 {[%emt 0:03:58]} 5. d4 {[%emt 0:07:44]} Nbd7 {[%emt 0:00:25]} 6. Bd3 {[%emt 0:00:42]} dxc4 {[%emt 0:00:48]} 7. Bxc4 {[%emt 0:00:10]} b5 {[%emt 0:00:04]} 8. Bd3 {[%emt 0:00:18]} a6 {[%emt 0:05:10]} 9. a4 {[%emt 0:03:58]} Bb7 {[%emt 0:00:58]} 10. O-O {[%emt 0:00:19]} b4 {[%emt 0:03:33]} 11. Ne4 {[%emt 0:02:08]} c5 {[%emt 0:00:23]} 12. Ned2 {[%emt 0:01:11]} Be7 {[%emt 0:03:40]} 13. a5 {[%emt 0:01:52]} O-O {[%emt 0:03:05]} 14. Qe2 {[%emt 0:04:29]} Qc7 {[%emt 0:07:00]} 15. Re1 {[%emt 0:15:49]} Rfd8 {[%emt 0:04:37]} 16. Nc4 {[%emt 0:05:30]} Rac8 {[%emt 0:05:40]} 17. e4 {[%emt 0:08:14]} cxd4 {[%emt 0:03:55]} 18. e5 {[%emt 0:00:35]} Nd5 {[%emt 0:07:37]} 19. Ng5 {[%emt 0:03:01]} h6 {[%emt 0:04:28]} 20. Nxf7 {[%emt 0:05:02]} Kxf7 {[%emt 0:01:31]} 21. Qh5+ {[%emt 0:00:09]} Kg8 {[%emt 0:01:02]} 22. Bxh6 {[%emt 0:00:18]} Nf8 {[%emt 0:10:45]} 23. Re4 {[%emt 0:10:30]} Nf6 {[%emt 0:02:08]} 24. exf6 {[%emt 0:00:53]} Bxe4 {[%emt 0:00:03]} 25. f7+ {[%emt 0:03:04]} Kh8 {[%emt 0:00:34]} 26. Bf4+ {[%emt 0:01:50]} Bh7 {[%emt 0:01:02]} 27. Bxc7 {[%emt 0:01:17]} 1-0

[Event "XI Paracin Festival 2018"]
[Site "Paracin"]
[Date "2018.07.06"]
[Round "1"]
[White "Savic, Miodrag R"]
[Black "Ninov, Dayan"]
[Result "1/2-1/2"]
[ECO "B03"]
[WhiteElo "2545"]
[BlackElo "2230"]
[Annotator "ChessBase"]
[PlyCount "87"]
[EventDate "2018.07.06"]
[EventType "swiss"]
[EventCountry "SRB"]
[SourceTitle "playchess.com"]
[Source "ChessBase"]
[SourceQuality "1"]
[TimeControl "5400+30"]

1. e4 {[%emt 0:00:00]} Nf6 {[%emt 0:08:27]} 2. e5 {[%emt 0:00:30]} Nd5 {[%emt 0:00:06]} 3. d4 {[%emt 0:03:02]} d6 {[%emt 0:00:08]} 4. c4 {[%emt 0:03:33]} Nb6 {[%emt 0:00:04]} 5. exd6 {[%emt 0:00:22]} cxd6 {[%emt 0:00:07]} 6. Be3 {[%emt 0:00:22]} g6 {[%emt 0:00:16]} 7. Nc3 {[%emt 0:06:28]} Bg7 {[%emt 0:07:59]} 8. Nf3 {[%emt 0:12:02]} O-O {[%emt 0:00:09]} 9. h3 {[%emt 0:03:31]} Nc6 {[%emt 0:08:01]} 10. Rc1 {[%emt 0:01:04]} d5 {[%emt 0:04:49]} 11. b3 {[%emt 0:10:00]} Be6 {[%emt 0:27:55]} 12. c5 {[%emt 0:01:20]} Nd7 {[%emt 0:02:21]} 13. Bb5 {[%emt 0:10:12]} a6 {[%emt 0:08:00]} 14. Bxc6 {[%emt 0:02:15]} bxc6 {[%emt 0:00:02]} 15. O-O {[%emt 0:00:57]} f6 {[%emt 0:01:56]} 16. Qd2 {[%emt 0:02:25]} Bf7 {[%emt 0:06:00]} 17. Bh6 {[%emt 0:03:37]} e5 {[%emt 0:01:00]} 18. Bxg7 {[%emt 0:00:21]} Kxg7 {[%emt 0:00:04]} 19. dxe5 {[%emt 0:08:10]} fxe5 {[%emt 0:00:20]} 20. Na4 {[%emt 0:00:30]} Be6 {[%emt 0:18:30]} 21. Qe3 {[%emt 0:03:53]} Qf6 {[%emt 0:03:38]} 22. Rce1 {[%emt 0:04:54]} Rae8 {[%emt 0:00:30]} 23. Nxe5 {[%emt 0:00:37]} Bxh3 {[%emt 0:00:30]} 24. f4 {[%emt 0:06:40]} Bf5 {[%emt 0:00:02]} 25. Nc3 {[%emt 0:00:57]} Qe7 {[%emt 0:00:56]} 26. Qd4 {[%emt 0:00:19]} Qxc5 {[%emt 0:00:35]} 27. Nxc6+ {[%emt 0:00:16]} Qxd4+ {[%emt 0:00:04]} 28. Nxd4 {[%emt 0:00:02]} Bd3 {[%emt 0:00:54]} 29. Rxe8 {[%emt 0:05:34]} Rxe8 {[%emt 0:00:01]} 30. Rd1 {[%emt 0:00:06]} Be4 {[%emt 0:00:12]} 31. Nc6 {[%emt 0:01:52]} Nf6 {[%emt 0:00:17]} 32. Nb4 {[%emt 0:00:11]} Rc8 {[%emt 0:01:34]} 33. Nxe4 {[%emt 0:06:01]} dxe4 {[%emt 0:00:01]} 34. Nxa6 {[%emt 0:00:02]} Rc2 {[%emt 0:00:39]} 35. a4 {[%emt 0:00:01]} e3 {[%emt 0:00:50]} 36. Re1 {[%emt 0:01:21]} Nd5 {[%emt 0:00:14]} 37. b4 {[%emt 0:00:25]} Rc4 {[%emt 0:00:27]} 38. a5 {[%emt 0:01:25]} Nxb4 {[%emt 0:00:24]} 39. Nxb4 {[%emt 0:00:08]} Rxb4 {[%emt 0:00:05]} 40. Ra1 {[%emt 0:00:07]} Rxf4 {[%emt 0:01:14]} 41. a6 {[%emt 0:00:04]} e2 {[%emt 0:00:16]} 42. Re1 {[%emt 0:02:40]} Ra4 {[%emt 0:00:28]} 43. Rxe2 {[%emt 0:00:02]} Rxa6 {[%emt 0:00:05]} 44. Re7+ {[%emt 0:00:09]} 1/2-1/2

[Event "XI Paracin Festival 2018"]
[Site "Paracin"]
[Date "2018.07.06"]
[Round "1"]
[White "Kadric, Denis"]
[Black "Vujacic, Borivoje"]
[Result "1-0"]
[ECO "B23"]
[WhiteElo "2509"]
[BlackElo "2211"]
[Annotator "ChessBase"]
[PlyCount "45"]
[EventDate "2018.07.06"]
[EventType "swiss"]
[EventCountry "SRB"]
[SourceTitle "playchess.com"]
[Source "ChessBase"]
[SourceQuality "1"]
[TimeControl "5400+30"]

1. e4 {[%emt 0:00:00]} c5 {[%emt 0:00:20]} 2. Nc3 {[%emt 0:00:00]} d6 {[%emt 0:00:29]} 3. f4 {[%emt 0:00:04]} g6 {[%emt 0:00:34]} 4. Nf3 {[%emt 0:00:23]} Bg7 {[%emt 0:00:08]} 5. Bb5+ {[%emt 0:00:16]} Bd7 {[%emt 0:00:15]} 6. Bc4 {[%emt 0:00:03]} Nc6 {[%emt 0:00:59]} 7. O-O {[%emt 0:00:03]} e6 {[%emt 0:05:58]} 8. f5 {[%emt 0:00:07]} exf5 {[%emt 0:06:51]} 9. d3 {[%emt 0:00:36]} Nge7 {[%emt 0:01:35]} 10. Qe1 {[%emt 0:00:23]} Na5 {[%emt 0:05:44]} 11. exf5 {[%emt 0:10:48]} Nxc4 {[%emt 0:01:24]} 12. f6 {[%emt 0:00:19]} Bxf6 {[%emt 0:12:50]} 13. Nd5 {[%emt 0:00:02]} Bg7 {[%emt 0:00:44]} 14. Bg5 {[%emt 0:00:06]} Ne5 {[%emt 0:20:55]} 15. Nxe5 {[%emt 0:00:27]} dxe5 {[%emt 0:01:02]} 16. Bxe7 {[%emt 0:00:05]} Qb8 {[%emt 0:01:26]} 17. Qf2 {[%emt 0:02:00]} Be6 {[%emt 0:01:21]} 18. Qxc5 {[%emt 0:03:38]} b6 {[%emt 0:08:23]} 19. Qc6+ {[%emt 0:02:15]} Bd7 {[%emt 0:00:56]} 20. Nc7+ {[%emt 0:00:03]} Kxe7 {[%emt 0:04:00]} 21. Rxf7+ {[%emt 0:00:04]} Kxf7 {[%emt 0:00:18]} 22. Qxd7+ {[%emt 0:00:02]} Kf6 {[%emt 0:00:21]} 23. Rf1+ {[%emt 0:00:08]} 1-0

[Event "XI Paracin Festival 2018"]
[Site "Paracin"]
[Date "2018.07.06"]
[Round "1"]
[White "Damljanovic, Branko"]
[Black "Winkelman, Albert"]
[Result "1-0"]
[ECO "D38"]
[WhiteElo "2499"]
[BlackElo "2183"]
[Annotator "ChessBase"]
[PlyCount "55"]
[EventDate "2018.07.06"]
[EventType "swiss"]
[EventCountry "SRB"]
[SourceTitle "playchess.com"]
[Source "ChessBase"]
[SourceQuality "1"]
[TimeControl "5400+30"]

1. c4 {[%emt 0:00:00]} Nf6 {[%emt 0:00:00]} 2. Nc3 {[%emt 0:00:00]} e6 {[%emt 0:04:35]} 3. Nf3 {[%emt 0:03:49]} d5 {[%emt 0:00:33]} 4. d4 {[%emt 0:00:03]} Bb4 {[%emt 0:00:15]} 5. Qa4+ {[%emt 0:00:06]} Nc6 {[%emt 0:00:11]} 6. e3 {[%emt 0:00:00]} O-O {[%emt 0:03:10]} 7. Bd2 {[%emt 0:00:19]} Qe7 {[%emt 0:08:59]} 8. Rd1 {[%emt 0:01:20]} Bd7 {[%emt 0:08:52]} 9. Qc2 {[%emt 0:00:03]} Rfd8 {[%emt 0:15:57]} 10. a3 {[%emt 0:01:25]} Bxc3 {[%emt 0:00:13]} 11. Bxc3 {[%emt 0:00:01]} Ne4 {[%emt 0:01:44]} 12. Bd3 {[%emt 0:03:25]} Nxc3 {[%emt 0:01:54]} 13. Qxc3 {[%emt 0:00:30]} a5 {[%emt 0:06:57]} 14. O-O {[%emt 0:00:56]} dxc4 {[%emt 0:30:11]} 15. Bxc4 {[%emt 0:00:11]} a4 {[%emt 0:08:55]} 16. Ba2 {[%emt 0:00:34]} Rdc8 {[%emt 0:02:05]} 17. e4 {[%emt 0:00:43]} Na7 {[%emt 0:01:25]} 18. Rfe1 {[%emt 0:01:34]} Nb5 {[%emt 0:01:04]} 19. Qe3 {[%emt 0:00:12]} Nd6 {[%emt 0:00:21]} 20. h4 {[%emt 0:06:22]} Bb5 {[%emt 0:00:22]} 21. h5 {[%emt 0:00:34]} Bc4 {[%emt 0:00:13]} 22. Bb1 c6 {[%emt 0:00:29]} 23. h6 {[%emt 0:04:54]} g6 {[%emt 0:00:38]} 24. Rc1 {[%emt 0:00:07]} b5 {[%emt 0:01:04]} 25. Nd2 {[%emt 0:02:39]} e5 {[%emt 0:01:17]} 26. dxe5 {[%emt 0:01:22]} Qxe5 {[%emt 0:00:07]} 27. f4 {[%emt 0:00:30]} Qe7 {[%emt 0:00:55]} 28. e5 {[%emt 0:00:38]} 1-0

[Event "XI Paracin Festival 2018"]
[Site "Paracin"]
[Date "2018.07.06"]
[Round "1"]
[White "Yilmazyerli, Mert"]
[Black "Trifunovic, Miroljub"]
[Result "1-0"]
[ECO "D00"]
[WhiteElo "2491"]
[BlackElo "2198"]
[Annotator "ChessBase"]
[PlyCount "69"]
[EventDate "2018.07.06"]
[EventType "swiss"]
[EventCountry "SRB"]
[SourceTitle "playchess.com"]
[Source "ChessBase"]
[SourceQuality "1"]
[TimeControl "5400+30"]

1. d4 {[%emt 0:00:00]} d5 {[%emt 0:00:02]} 2. Bf4 {[%emt 0:00:00]} c5 {[%emt 0:04:15]} 3. e3 {[%emt 0:00:00]} Nc6 {[%emt 0:01:35]} 4. c3 {[%emt 0:00:47]} Nf6 {[%emt 0:03:31]} 5. Nd2 {[%emt 0:00:15]} e6 {[%emt 0:02:07]} 6. Ngf3 {[%emt 0:00:56]} Bd6 {[%emt 0:10:10]} 7. Bg3 {[%emt 0:00:10]} O-O {[%emt 0:01:32]} 8. Bd3 {[%emt 0:00:11]} Re8 {[%emt 0:04:15]} 9. Ne5 {[%emt 0:00:38]} Qc7 {[%emt 0:08:41]} 10. f4 {[%emt 0:00:42]} g6 {[%emt 0:02:16]} 11. O-O {[%emt 0:01:53]} Nh5 {[%emt 0:04:25]} 12. Bh4 {[%emt 0:01:00]} Be7 {[%emt 0:05:39]} 13. Qe1 {[%emt 0:05:03]} Qd8 {[%emt 0:07:22]} 14. Bxe7 {[%emt 0:01:51]} Qxe7 {[%emt 0:00:21]} 15. g4 {[%emt 0:01:29]} Ng7 {[%emt 0:02:36]} 16. Ndf3 {[%emt 0:04:20]} Nxe5 {[%emt 0:07:33]} 17. fxe5 {[%emt 0:01:42]} Bd7 {[%emt 0:07:51]} 18. Qg3 {[%emt 0:01:57]} Rf8 {[%emt 0:06:20]} 19. Qf4 {[%emt 0:02:04]} c4 {[%emt 0:04:27]} 20. Qh6 {[%emt 0:00:53]} Ne8 {[%emt 0:03:24]} 21. Ng5 {[%emt 0:00:23]} f6 {[%emt 0:00:38]} 22. exf6 {[%emt 0:00:10]} Rxf6 {[%emt 0:01:38]} 23. Bc2 {[%emt 0:03:35]} Qg7 {[%emt 0:00:52]} 24. Qh4 {[%emt 0:00:19]} h6 {[%emt 0:00:48]} 25. Nf3 {[%emt 0:00:04]} Nd6 {[%emt 0:03:29]} 26. g5 {[%emt 0:03:12]} hxg5 {[%emt 0:00:13]} 27. Qxg5 {[%emt 0:00:14]} Raf8 {[%emt 0:00:43]} 28. Ne5 {[%emt 0:00:17]} Be8 {[%emt 0:01:06]} 29. Ng4 {[%emt 0:03:01]} Rxf1+ {[%emt 0:00:36]} 30. Rxf1 {[%emt 0:00:07]} Nf5 {[%emt 0:00:13]} 31. e4 {[%emt 0:01:55]} dxe4 {[%emt 0:00:23]} 32. Bxe4 {[%emt 0:00:13]} Bc6 {[%emt 0:01:04]} 33. Bxc6 {[%emt 0:01:35]} bxc6 {[%emt 0:00:04]} 34. Re1 {[%emt 0:00:30]} Ne7 {[%emt 0:03:49]} 35. Rxe6 {[%emt 0:00:33]} 1-0

[Event "XI Paracin Festival 2018"]
[Site "Paracin"]
[Date "2018.07.06"]
[Round "1"]
[White "Asadli, Vugar Afgan Oglu"]
[Black "Bratkovic, Sham"]
[Result "1-0"]
[ECO "A07"]
[WhiteElo "2478"]
[BlackElo "2190"]
[Annotator "ChessBase"]
[PlyCount "59"]
[EventDate "2018.07.06"]
[EventType "swiss"]
[EventCountry "SRB"]
[SourceTitle "playchess.com"]
[Source "ChessBase"]
[SourceQuality "1"]
[TimeControl "5400+30"]

1. Nf3 {[%emt 0:00:00]} Nf6 {[%emt 0:01:33]} 2. g3 {[%emt 0:00:00]} d5 {[%emt 0:01:14]} 3. Bg2 {[%emt 0:00:43]} c6 {[%emt 0:01:06]} 4. O-O {[%emt 0:00:26]} Bg4 {[%emt 0:01:54]} 5. d3 {[%emt 0:00:31]} Nbd7 {[%emt 0:00:35]} 6. Nbd2 {[%emt 0:01:02]} e5 {[%emt 0:01:26]} 7. e4 {[%emt 0:00:02]} dxe4 {[%emt 0:00:55]} 8. dxe4 {[%emt 0:00:07]} Bc5 {[%emt 0:01:38]} 9. Qe1 {[%emt 0:01:25]} O-O {[%emt 0:01:36]} 10. h3 {[%emt 0:01:56]} Bxf3 {[%emt 0:03:45]} 11. Bxf3 {[%emt 0:01:28]} Qe7 {[%emt 0:03:20]} 12. a4 {[%emt 0:01:02]} Rfd8 {[%emt 0:08:17]} 13. Qe2 {[%emt 0:04:14]} Nf8 {[%emt 0:04:49]} 14. Bg2 {[%emt 0:03:03]} Ne6 {[%emt 0:04:56]} 15. c3 {[%emt 0:01:57]} Qc7 {[%emt 0:07:27]} 16. h4 {[%emt 0:01:17]} Be7 {[%emt 0:04:29]} 17. Nc4 {[%emt 0:10:12]} a5 {[%emt 0:18:58]} 18. h5 {[%emt 0:09:14]} h6 {[%emt 0:03:31]} 19. Kh1 {[%emt 0:11:53]} Nc5 {[%emt 0:15:49]} 20. f4 {[%emt 0:00:42]} exf4 {[%emt 0:00:53]} 21. Bxf4 {[%emt 0:01:56]} Qd7 {[%emt 0:00:30]} 22. Nb6 {[%emt 0:00:41]} Qe6 {[%emt 0:00:19]} 23. Nxa8 {[%emt 0:01:30]} Rxa8 {[%emt 0:00:17]} 24. e5 {[%emt 0:01:31]} Nd5 {[%emt 0:01:15]} 25. Kh2 {[%emt 0:01:08]} g5 {[%emt 0:02:44]} 26. hxg6 {[%emt 0:03:06]} Qxg6 {[%emt 0:00:10]} 27. Rad1 {[%emt 0:00:57]} Rd8 {[%emt 0:04:16]} 28. Bc1 {[%emt 0:02:14]} Bg5 {[%emt 0:01:00]} 29. Bxg5 {[%emt 0:01:38]} hxg5 {[%emt 0:00:21]} 30. c4 {[%emt 0:00:42]} 1-0

[Event "XI Paracin Festival 2018"]
[Site "Paracin"]
[Date "2018.07.06"]
[Round "1"]
[White "Milanovic, Danilo"]
[Black "Ongut, Tamas Gunes"]
[Result "1/2-1/2"]
[ECO "E70"]
[WhiteElo "2471"]
[BlackElo "2185"]
[Annotator "ChessBase"]
[PlyCount "97"]
[EventDate "2018.07.06"]
[EventType "swiss"]
[EventCountry "SRB"]
[SourceTitle "playchess.com"]
[Source "ChessBase"]
[SourceQuality "1"]
[TimeControl "5400+30"]

1. d4 {[%emt 0:00:00]} Nf6 {[%emt 0:04:11]} 2. c4 {[%emt 0:00:28]} g6 {[%emt 0:00:43]} 3. Nc3 {[%emt 0:00:08]} Bg7 {[%emt 0:00:43]} 4. e4 {[%emt 0:00:13]} d6 {[%emt 0:00:06]} 5. Bg5 {[%emt 0:01:22]} h6 {[%emt 0:04:03]} 6. Be3 {[%emt 0:01:54]} O-O {[%emt 0:04:01]} 7. f3 {[%emt 0:01:01]} c5 {[%emt 0:00:20]} 8. Nge2 {[%emt 0:04:25]} Nc6 {[%emt 0:01:18]} 9. Qd2 {[%emt 0:12:55]} h5 {[%emt 0:07:42]} 10. d5 {[%emt 0:06:03]} Ne5 {[%emt 0:00:13]} 11. Nc1 {[%emt 0:00:21]} e6 {[%emt 0:01:56]} 12. Be2 {[%emt 0:05:30]} exd5 {[%emt 0:01:48]} 13. cxd5 {[%emt 0:00:18]} a6 {[%emt 0:00:46]} 14. a4 {[%emt 0:00:34]} Bd7 {[%emt 0:02:29]} 15. O-O {[%emt 0:06:33]} b5 {[%emt 0:12:53]} 16. axb5 {[%emt 0:04:33]} axb5 {[%emt 0:00:07]} 17. Rxa8 {[%emt 0:00:28]} Qxa8 {[%emt 0:00:10]} 18. Nxb5 {[%emt 0:00:49]} Bxb5 {[%emt 0:02:32]} 19. Bxb5 {[%emt 0:00:05]} Rb8 {[%emt 0:01:11]} 20. Be2 {[%emt 0:00:33]} Nfd7 {[%emt 0:07:38]} 21. b3 {[%emt 0:04:00]} Qa3 {[%emt 0:04:07]} 22. Qc2 {[%emt 0:19:36]} Rc8 {[%emt 0:14:00]} 23. h3 {[%emt 0:06:25]} c4 {[%emt 0:03:41]} 24. f4 {[%emt 0:01:45]} Rb8 {[%emt 0:00:44]} 25. Bxc4 {[%emt 0:00:36]} Nxc4 {[%emt 0:02:57]} 26. Qxc4 {[%emt 0:00:19]} Qb4 {[%emt 0:02:24]} 27. Rd1 {[%emt 0:18:23]} Qxc4 {[%emt 0:00:20]} 28. bxc4 {[%emt 0:00:04]} Rc8 {[%emt 0:04:00]} 29. e5 {[%emt 0:02:11]} dxe5 {[%emt 0:00:27]} 30. fxe5 {[%emt 0:00:08]} Bxe5 {[%emt 0:00:34]} 31. Nd3 {[%emt 0:00:08]} Rxc4 {[%emt 0:00:36]} 32. Nxe5 {[%emt 0:00:06]} Nxe5 {[%emt 0:00:06]} 33. d6 {[%emt 0:00:46]} Nd7 {[%emt 0:00:44]} 34. Ra1 {[%emt 0:00:10]} Rc6 {[%emt 0:00:37]} 35. Bf4 {[%emt 0:00:08]} Rc8 {[%emt 0:02:04]} 36. Ra7 {[%emt 0:00:27]} Rd8 {[%emt 0:00:17]} 37. Kf2 {[%emt 0:03:26]} f6 {[%emt 0:00:48]} 38. Ke3 {[%emt 0:01:11]} Kf7 {[%emt 0:00:08]} 39. Kd4 {[%emt 0:00:28]} Ke6 {[%emt 0:00:14]} 40. Ra6 {[%emt 0:00:33]} Rc8 {[%emt 0:01:48]} 41. Bg3 {[%emt 0:00:47]} Rb8 {[%emt 0:03:55]} 42. Ra2 {[%emt 0:00:35]} Rb4+ {[%emt 0:01:32]} 43. Ke3 {[%emt 0:00:22]} Rb3+ {[%emt 0:06:29]} 44. Kf2 {[%emt 0:00:06]} Rb5 {[%emt 0:01:27]} 45. Re2+ {[%emt 0:00:53]} Ne5 {[%emt 0:00:07]} 46. Rd2 {[%emt 0:00:14]} Nd7 {[%emt 0:01:04]} 47. Re2+ {[%emt 0:00:26]} Ne5 {[%emt 0:00:06]} 48. Rd2 {[%emt 0:00:09]} Nd7 {[%emt 0:00:07]} 49. Re2+ {[%emt 0:00:08] Ke5} 1/2-1/2

[Event "XI Paracin Festival 2018"]
[Site "Paracin"]
[Date "2018.07.06"]
[Round "1"]
[White "Kosic, Dragan"]
[Black "Jigjidsuren, Purev"]
[Result "1-0"]
[ECO "A40"]
[WhiteElo "2463"]
[BlackElo "2183"]
[Annotator "ChessBase"]
[PlyCount "125"]
[EventDate "2018.07.06"]
[EventType "swiss"]
[EventCountry "SRB"]
[SourceTitle "playchess.com"]
[Source "ChessBase"]
[SourceQuality "1"]
[TimeControl "5400+30"]

1. d4 {[%emt 0:00:00]} b6 {[%emt 0:00:00]} 2. e4 {[%emt 0:00:11]} Bb7 {[%emt 0:00:00]} 3. Nc3 {[%emt 0:00:25]} e6 {[%emt 0:00:17]} 4. Bd3 {[%emt 0:00:51]} c5 {[%emt 0:04:50]} 5. Nf3 {[%emt 0:02:05]} cxd4 {[%emt 0:00:32]} 6. Nxd4 {[%emt 0:00:10]} a6 {[%emt 0:00:09]} 7. O-O {[%emt 0:00:42]} Qc7 {[%emt 0:00:12]} 8. Qe2 {[%emt 0:05:09]} d6 {[%emt 0:00:33]} 9. f4 {[%emt 0:00:39]} Be7 {[%emt 0:01:16]} 10. Be3 {[%emt 0:07:25]} Nf6 {[%emt 0:01:41]} 11. Rae1 {[%emt 0:00:46]} Nbd7 {[%emt 0:02:03]} 12. Kh1 {[%emt 0:00:36]} b5 {[%emt 0:03:33]} 13. a3 {[%emt 0:01:56]} Rc8 {[%emt 0:01:35]} 14. Bd2 {[%emt 0:11:12]} Nc5 {[%emt 0:07:04]} 15. b4 {[%emt 0:01:49]} Nxd3 {[%emt 0:02:51]} 16. cxd3 {[%emt 0:00:13]} O-O {[%emt 0:00:16]} 17. Qf2 {[%emt 0:01:48]} Nd7 {[%emt 0:06:47]} 18. Nf3 {[%emt 0:07:06]} Bf6 {[%emt 0:05:19]} 19. Rc1 {[%emt 0:02:01]} Qd8 {[%emt 0:02:40]} 20. Qg3 {[%emt 0:03:07]} Re8 {[%emt 0:03:32]} 21. e5 {[%emt 0:06:38]} Be7 22. Ne4 {[%emt 0:09:38]} Nf8 {[%emt 0:17:02]} 23. Rxc8 {[%emt 0:05:12]} Bxc8 {[%emt 0:00:07]} 24. exd6 {[%emt 0:08:14]} Bxd6 {[%emt 0:00:13]} 25. Bc3 {[%emt 0:00:09]} Ng6 {[%emt 0:00:21]} 26. Nfg5 {[%emt 0:01:41]} h6 {[%emt 0:05:53]} 27. Nxd6 {[%emt 0:05:40]} Qxd6 {[%emt 0:00:14]} 28. Ne4 {[%emt 0:00:26]} Qd5 {[%emt 0:01:52]} 29. Be5 {[%emt 0:00:44]} Rd8 {[%emt 0:03:08]} 30. Nc5 {[%emt 0:04:58]} Kh7 {[%emt 0:01:16]} 31. h3 {[%emt 0:01:28]} f6 {[%emt 0:02:40]} 32. Bb2 {[%emt 0:00:13]} Ne7 {[%emt 0:02:30]} 33. Kh2 {[%emt 0:02:05]} Nf5 {[%emt 0:03:14]} 34. Qf3 {[%emt 0:01:03]} a5 {[%emt 0:03:21]} 35. Qxd5 {[%emt 0:01:03]} Rxd5 {[%emt 0:00:03]} 36. Rc1 {[%emt 0:01:00]} axb4 {[%emt 0:00:27]} 37. axb4 {[%emt 0:00:07]} Ne7 {[%emt 0:02:14]} 38. Ra1 {[%emt 0:01:37]} e5 {[%emt 0:01:24]} 39. fxe5 {[%emt 0:00:32]} fxe5 {[%emt 0:00:02]} 40. Ra7 {[%emt 0:00:13]} Ng6 {[%emt 0:07:49]} 41. g4 {[%emt 0:00:36]} Rd8 {[%emt 0:02:49]} 42. Kg3 {[%emt 0:00:17]} Kg8 43. h4 {[%emt 0:04:52]} h5 {[%emt 0:05:25]} 44. gxh5 {[%emt 0:00:29]} Nf4 {[%emt 0:00:02]} 45. Bxe5 {[%emt 0:00:27]} Nxh5+ {[%emt 0:01:08]} 46. Kf3 {[%emt 0:00:24]} Rf8+ {[%emt 0:00:18]} 47. Ke3 {[%emt 0:00:19]} Re8 {[%emt 0:01:16]} 48. d4 {[%emt 0:01:30]} Bh3 {[%emt 0:00:20]} 49. Ne4 {[%emt 0:00:58]} Bf1 {[%emt 0:00:37]} 50. Kf2 {[%emt 0:01:09]} Rf8+ {[%emt 0:00:50]} 51. Ke3 {[%emt 0:00:19]} Re8 {[%emt 0:00:25]} 52. Rb7 {[%emt 0:00:20]} Ra8 {[%emt 0:01:49]} 53. d5 {[%emt 0:00:54]} Ra3+ {[%emt 0:00:34]} 54. Kd4 {[%emt 0:00:41]} Rd3+ {[%emt 0:00:10]} 55. Kc5 {[%emt 0:00:05]} Bg2 {[%emt 0:00:02]} 56. Nc3 {[%emt 0:00:53]} Nf6 {[%emt 0:00:12]} 57. Bd4 {[%emt 0:01:32]} Rh3 {[%emt 0:00:54]} 58. Bxf6 {[%emt 0:01:43]} gxf6 {[%emt 0:00:01]} 59. Nxb5 {[%emt 0:00:07]} Rxh4 {[%emt 0:00:16]} 60. Nd4 {[%emt 0:00:09]} Rh5 {[%emt 0:00:17]} 61. Rd7 {[%emt 0:00:13]} Kf8 {[%emt 0:00:50]} 62. b5 {[%emt 0:00:45]} Ke8 {[%emt 0:00:24]} 63. Rd6 {[%emt 0:00:04]} 1-0